Cogmind - Beta 12 @@@ ROGUE MODE // 2023.10.06 @ 21:35:17 Player: Luminiferous Result: Destroyed by G-34 Mercenary with Small Laser Performance ------------- Evolutions (0) 0 Regions Visited (1) 200 Robots Destroyed (12) 60 Value Destroyed (289) 289 Prototype IDs (0) 0 Alien Tech Used (0) 0 Bonus (0) 0 TOTAL SCORE: 549 Bonus ------- None Cogmind --------- Core Integrity 0/250 Matter 282/300 Energy 265/265 System Corruption 0% Temperature Cool (15) Movement Walking (330) Ox3 Location -10/Materials Parts ------- > --- POWER (1) -------- Improved Ion Engine > --- PROPULSION (2) --- Aluminum Leg > --- UTILITY (2) ------ Small Storage Unit Large Storage Unit > --- WEAPON (2) ------- Assault Rifle > --- INVENTORY (15) --- Light Ion Engine Improved Ion Engine Improved Ion Engine Wheel Wheel VTOL Module VTOL Module VTOL Module VTOL Module Sensor Array Signal Interpreter Terrain Scanner Peak State ------------ > --- POWER ------------ Improved Ion Engine > --- PROPULSION ------- Aluminum Leg Aluminum Leg > --- UTILITY ---------- Small Storage Unit Large Storage Unit > --- WEAPON ----------- Medium Laser Assault Rifle > --- INVENTORY -------- Ion Engine Light Ion Engine Improved Ion Engine Improved Ion Engine Improved Ion Engine Wheel Wheel VTOL Module VTOL Module VTOL Module VTOL Module Sensor Array Signal Interpreter Terrain Scanner [Rating: 10] Favorites ----------- Power Ion Engine Engine Ion Engine Propulsion Aluminum Leg Leg Aluminum Leg Wheel Wheel Utility Small Storage Unit Storage Small Storage Unit Weapon Medium Laser Energy Gun Medium Laser Ballistic Gun Assault Rifle Build | -11 -10 ------- Run | Jun Mat Slots Evolved . | . . Power . | . . Propulsion . | . . Utility . | . . Weapon . | . . Parts Attached 11 | 7 4 Power 3 | 1 2 Engine 3 | 1 2 Core . | . . Reactor . | . . Propulsion 3 | 3 . Treads . | . . Leg 2 | 2 . Wheel 1 | 1 . Hover . | . . Flight . | . . Utility 2 | 1 1 Device . | . . Storage 2 | 1 1 Processor . | . . Hackware . | . . Protection . | . . Artifact . | . . Weapon 3 | 2 1 Energy Gun 2 | 2 . Energy Cannon . | . . Ballistic Gun 1 | . 1 Ballistic Cannon . | . . Launcher . | . . Special Weapon . | . . Impact Weapon . | . . Slashing Weapon . | . . Piercing Weapon . | . . Special Melee Weapon . | . . Unidentified Prototypes . | . . Parts Lost 4 | . 4 Power 1 | . 1 Propulsion 1 | . 1 Utility . | . . Weapon 2 | . 2 Highest Loss Streak 2 | . 2 To Critical Strikes . | . . Average Slot Usage (%) 93 | . 93 Engine 12 | . 12 Leg 28 | . 28 Storage 25 | . 25 Energy Gun 21 | . 21 Ballistic Gun 3 | . 3 Naked Turns . | . . Heaviest Build 36 | 14 36 Greatest Support 20 | 20 20 Greatest Overweight (x) 1 | 1 1 Average Overweight (x) . | . . Largest Inventory Capacity 15 | 8 15 Average Capacity 13 | 7 13 Most Carried 14 | 8 14 Average Carried 6 | 4 7 Final Capacity 15 | 8 15 Final Carried 12 | 4 12 Class Distribution -------------------- 100% | Mutant Dominant Class ---------------- Mutant | -10/Materials Resources | -11 -10 ----------- Run | Jun Mat Matter Collected 303 | 183 120 Remotely . | . . Salvage Created 441 | . 441 Parts 17 | . 17 Haulers Intercepted . | . . Recyclers Shooed . | . . Parts Field Recycled . | . . Retrieved Matter . | . . Parts Self-Destructed . | . . Prevented . | . . Kills | -11 -10 ------- Run | Jun Mat Combat Hostiles Destroyed 7 | . 7 Guns 5 | . 5 AOE 1 | . 1 Classes Destroyed 4 | . 4 Worker 3 | . 3 Recycler 1 | . 1 Watcher 1 | . 1 Grunt 7 | . 7 Best Kill Streak 4 | . 4 Combat Bots Only 3 | . 3 Max Kills in Single Turn 2 | . 2 Gunslinging . | . . Exploded 1 | . 1 Melee . | . . Uniques/NPCs Destroyed . | . . Combat | -11 -10 -------- Run | Jun Mat Damage Taken 772 | . 772 Core 258 | . 258 Absorbed by Shields . | . . Core Remaining (%) 100 | 100 . Volleys Fired 44 | . 44 Largest 2 | . 2 Hottest 90 | . 90 Shots Fired 67 | . 67 Gun 67 | . 67 Cannon . | . . Launcher . | . . Special . | . . Kinetic 7 | . 7 Thermal 40 | . 40 Explosive . | . . Electromagnetic 20 | . 20 Robot Hit Streak 11 | . 11 Robot Miss Streak 2 | . 2 Penetration Max . | . . Secondary Targets . | . . Shots Hit Robots 52 | . 52 Core Hits 21 | . 21 Critical Kills . | . . Critical Parts Destroyed . | . . Critical Strikes 4 | . 4 Burn 4 | . 4 Melee Attacks . | . . Impact . | . . Slashing . | . . Piercing . | . . Sneak Attacks . | . . Combat Hostiles . | . . Follow-up Attacks . | . . Damage Inflicted 733 | . 733 Guns 678 | . 678 Cannons . | . . Explosions 55 | . 55 Melee . | . . Ramming . | . . Kinetic 72 | . 72 Thermal 431 | . 431 Explosive . | . . Electromagnetic 230 | . 230 Impact . | . . Slashing . | . . Piercing . | . . Highest Corruption . | . . Average Corruption . | . . Corruption Purged . | . . Corruption Blocked . | . . Overload Shots . | . . Overflow Damage 15 | . 15 Projectiles . | . . Explosions 15 | . 15 Melee . | . . Knockbacks . | . . Impact . | . . Kinetic . | . . Secondary . | . . Self-Inflicted Damage 43 | . 43 Shots 1 | . 1 Rammed . | . . Targets Rammed . | . . Kicked . | . . Crushed . | . . Highest Temperature 252 | . 252 Average Temperature 100 | . 100 Received Heat Transfer 426 | . 426 Siege Activations . | . . Robots Corrupted . | . . Combat Hostiles . | . . Parts Fried 1 | . 1 Impact Corruptions . | . . Robots Melted 1 | . 1 Combat Hostiles 1 | . 1 Parts Melted 3 | . 3 Heat Transferred 1406 | . 1406 Parts Sabotaged . | . . Parts Stolen . | . . Parts Stripped . | . . Power Chain Reactions 1 | . 1 Missiles Intercepted . | . . Alert | -11 -10 ------- Run | Jun Mat Peak Influence 238 | . 238 Initial . | . . Average 88 | . 97 Maximum Alert Level 1 | . 1 Low Security (%) 92 | 100 91 Level 1 7 | . 8 Level 2 . | . . Level 3 . | . . Level 4 . | . . Level 5 . | . . High Security . | . . Max Security . | . . Squads Dispatched 1 | . 1 Investigation 1 | . 1 Extermination . | . . Reinforcement . | . . Assault . | . . Garrison . | . . Intercept . | . . Searches Triggered . | . . Construction Impeded . | . . Haulers Reinforced . | . . Active Scanning Responses . | . . Cargo Convoy Interrupts . | . . Stealth | -11 -10 --------- Run | Jun Mat Distress Signals 1 | . 1 Communications Jammed . | . . Distress Signals . | . . Times Spotted 15 | . 15 Peak Tracking Total 4 | . 4 Tactical Retreats 3 | . 3 Traps | -11 -10 ------- Run | Jun Mat Traps Triggered 1 | . 1 Indirectly . | . . Trap Hack Attempts . | . . Triggered . | . . Disarmed . | . . Reprogrammed . | . . Reused . | . . Traps Extracted . | . . Installed . | . . Triggered . | . . Machines | -11 -10 ---------- Run | Jun Mat Machines Disabled . | . . Max in Single Turn . | . . Machines Repaired . | . . Machines Sabotaged . | . . Overloaded Fab Kills . | . . Hacking | -11 -10 --------- Run | Jun Mat Machines Accessed 4 | . 4 Terminals 3 | . 3 Fabricators . | . . Repair Stations . | . . Recycling Units 1 | . 1 Scanalyzers . | . . Garrison Access . | . . Total Hacks 8 | . 8 Successful 2 | . 2 Failed 6 | . 6 Catastrophic 3 | . 3 Database Lockouts . | . . Manual 7 | . 7 Terminals 7 | . 7 Fabricators . | . . Repair Stations . | . . Recycling Units 1 | . 1 Scanalyzers . | . . Garrison Access . | . . Terminal Hacks . | . . Fabricator Hacks . | . . Repair Station Hacks . | . . Recycling Unit Hacks 1 | . 1 Report Inventory 1 | . 1 Scanalyzer . | . . Garrison Access Hacks . | . . Unauthorized Hacks 1 | . 1 Terminals 1 | . 1 Botnet 1 | . 1 Fabricators . | . . Repair Stations . | . . Recycling Units . | . . Scanalyzers . | . . Garrison Access . | . . Data Cores Recovered . | . . Used . | . . Hacking Detections 4 | . 4 Full Trace Events 1 | . 1 Feedback Events . | . . Feedback Blocked . | . . Robot Schematics Acquired . | . . Robots Built . | . . Authchips . | . . Time . | . . Total Robot Build Rating . | . . Part Schematics Acquired . | . . Parts Built . | . . Authchips . | . . Time . | . . Total Part Build Rating . | . . Parts Repaired . | . . Time . | . . Parts Recycled . | . . Recycled Matter . | . . Retrieved Matter . | . . Retrieved Components . | . . Parts Scanalyzed . | . . Part Schematics Acquired . | . . Parts Damaged . | . . Bothacking | -11 -10 ------------ Run | Jun Mat Used RIF Installer . | . . Robots Hacked . | . . Non-combat . | . . Combat . | . . Robot Hacks Applied . | . . Relay Couplers Released . | . . Fabnet Peak Effective % . | . . Robots Rewired . | . . Allies Hacked . | . . Hacks Repelled . | . . Allies | -11 -10 -------- Run | Jun Mat Total Allies . | . . Largest Group . | . . Highest-Rated Group . | . . Highest-Rated Ally . | . . Total Orders . | . . Ally Attacks . | . . Total Damage . | . . Kills . | . . Allies Corrupted . | . . Allies Melted . | . . Intel | -11 -10 ------- Run | Jun Mat Robot Analysis Total . | . . Derelict Logs Recovered . | . . Drone Launches . | . . Drone Recoveries . | . . Exploration | -11 -10 ------------- Run | Jun Mat Turns Passed 650 | 58 592 Spaces Moved 277 | 37 240 Core 19 | 19 . Treads . | . . Legs 253 | 13 240 Wheels 5 | 5 . Hover . | . . Flight . | . . Fastest Speed 50 | 50 120 Average Speed 165 | 94 176 Slowest Speed 190 | 120 190 Overloaded Moves . | . . Propulsion Burnouts . | . . Robots Hopped . | . . Cave-ins Triggered . | . . Exploration Rate (%) 17 | 3 31 Regions Visited 1 Branch Regions . Pre-discovered Areas . | . . Known Exits Taken . | . . Unknown Exits Taken 1 | 1 . Scrap Searched . | . . Spaces Dug . | . . Terrain Destroyed 4 | . 4 Melee . | . . Projectile . | . . AOE 4 | . 4 Terrain Rammed . | . . Walls Destroyed . | . . Machines Disabled . | . . Actions | -11 -10 --------- Run | Jun Mat Total 402 | 59 343 Wait 47 | 7 40 Move 276 | 36 240 Hop . | . . Pick Up 21 | 8 13 Fast Attach 2 | 2 . Attach 8 | 5 3 Detach 1 | 1 . Swap 1 | . 1 Drop 2 | . 2 Fire 44 | . 44 Melee . | . . Ram . | . . Kick . | . . Crush . | . . Escape Stasis . | . . Rewire . | . . Trap . | . . Miscellaneous . | . . Route ------- -11/Junkyard -10/Materials (discovered 1 exit: [*Mat]) History --------- Turn | Location | Event 14 | -11/Junkyard | Discovered new exit (range 16) 59 | -11/Junkyard | Entered Materials 301 | -10/Materials | Build established: Mutant 368 | -10/Materials | Discovered new exit (range 16) 408 | -10/Materials | Core integrity fell below 50% 422 | -10/Materials | Core integrity fell below 20% 651 | -10/Materials | Destroyed by G-34 Mercenary with Small Laser Last Messages --------------- 00571_ Acquired Imp. Ion Engine. 00588_ Dropped Imp. Ion Engine. 00588_ Dropped Ion Engine. 00607_ R-06 Scavenger collects Imp. Ion Engine. 00611_ R-06 Scavenger collects Ion Engine. 00618_ W-16 Scout sends out distress signal. 00627_ Connecting with Recycling Unit... >>Recycling(Report) Matter reserves: 0 Inventory: Corrupted Ion Engine (86%) Corrupted Heat Sink (50%) Aluminum Leg (75%) Particle Gun (73%) 00628_ R-06 Scavenger inserts Imp. Heat Sink into recycling unit. 00631_ R-06 Scavenger inserts Wheel into recycling unit. 00634_ R-06 Scavenger inserts Imp. Ion Engine into recycling unit. 00637_ R-06 Scavenger inserts Ion Engine into recycling unit. 00641_ Med. Laser destroyed. 00651_ Aluminum Leg destroyed. Map ----- +----------------------------------------------------+ | | | | | | | | | | | | | | | | | | | | | | | | | ????????????????????????????????????? | | ????????????????????????????????????? | | ?????????????????????????????##?????? | | ????????????????????????????? #?????? | | ?????????????#####?????????? "#?????? | | ?????????????+ ######???? T#?????? | | ?????????????# +???? "??????? | | ??????????#### #??? ??????? | | ??????????? /???= ???????? | | ????????????# ####g####????? | | ????????????# ## ! #????? | | ????????????# # #????? | | ????????????# # ""#????? | | ????????????# g@r Y"#????? | | ???????????????#### # ""#????? | | ??????????????????# # #????? | | ??????????????????# ##########????? | | ??????????????????# #?????????????? | | ??????????????????# #????#####????? | | ??????????????????# ###### #????? | | ??????????????????# ==## < #????? | | ????????????####### ==## #????? | | ?????? ## #????? | | ?????????????######## ## #????? | | ????????????????????# ## #????? | | ????????????????????# ## #????? | | ???????????????????##+###### #????? | | ???????????????????# ## #????? | | ???????????????????# ## #????? | | ???????????????????# ## #????? | | ???????????????????# "T" ## #????? | | ???????????????????# """ ## #????? | | ???????????????????# ## ##???? | | ???????????????????####+### #???? | | ???????????????##### #???? | | ???????????? #???? | | ????????????######## #???? | | ???????????????????####+### #???? | +----------------------------------------------------+ Best States ------------- Heat Dissipation 25 Energy Generation 12 Energy Capacity 265 Matter Stores 300 Matter Capacity 300 Sight Range 16 Terrain Scan Density 10 Evasion (%) 55 Item Schematics ----------------- None Robot Schematics ------------------ None Fabricated ------------ Nothing Alien Tech Used ----------------- None Achievements -------------- None Challenges ------------ None Game ------ Seed LatentGatlingPurifier Manual? 0 Play Time 00:06:09 Cumulative 6.4 hours Start 2023.10.06 @ 21:30:25 End 2023.10.06 @ 21:35:17 Sessions 1 Manual Loads 0 Difficulty Rogue Special Mode None Game No. 22 Rogue 22 Adventurer 0 Explorer 0 Win Type - Total 0 Types 0/0/0/0/0/0/0/0/0 Lore% 6 Gallery% 16 Achievement% 19 Wizard Run 0 Options --------- ASCII 0 Keyboard 0 Movement Mouse Keybinds 1 Fullscreen 1 Font 18/Smallcaps Map View 76x50 Tactical HUD 1 Map Filters SHIFT_HUE(270)|BRIGHTNESS(75) Filters SHIFT_HUE(90)|BRIGHTNESS(125) Steam 1 RUN: 35fae3eb-e516-4f04-97ae-5557c6fd4f34